bitfinex/quotes_SOLUSD_20220208
["timestamp","ask_amount","ask_price","bid_price","bid_amount"]
[1644313210564,1.22697985,114.36,114.28,13.1203]
[1644313210764,1.22697985,114.37,114.28,13.3703]
[1644313210964,1.22697985,114.37,114.29,37.4186]
[1644313211370,1.22697985,114.37,114.29,37.6686]
[1644313211763,1.22697985,114.38,114.29,39.75775842]
[1644313212173,1.22697985,114.38,114.31,13.1182]
[1644313212365,1.22697985,114.38,114.31,13.3682]
[1644313213166,1.22697985,114.37,114.31,13.3682]
[1644313213568,1.22697985,114.38,114.31,21.45735842]
[1644313213768,1.22697985,114.39,114.34,13.1139]
[1644313213970,1.22697985,114.4,114.34,23.6099]
[1644313214167,1.22697985,114.4,114.34,25.94905842]
[1644313214568,1.22697985,114.4,114.34,44.56905842]
[1644313214790,1.22697985,114.42,114.34,44.56905842]
[1644313215168,1.22697985,114.42,114.34,38.56905842]
[1644313215370,1.22697985,114.42,114.34,25.9839]
[1644313215569,1.22697985,114.42,114.34,28.07305842]
[1644313216075,1.22697985,114.42,114.34,34.07305842]
[1644313217871,1.47697985,114.42,114.34,34.07305842]
[1644313218472,1.22697985,114.42,114.34,45.84005842]
[1644313218671,1.22697985,114.42,114.34,52.27103842]
[1644313218871,1.22697985,114.42,114.34,66.20005702]
[1644313219271,2.44527222,114.45,114.34,81.20731063]
[1644313219473,2.44527222,114.45,114.35,29.1613]
[1644313219671,2.44527222,114.45,114.38,13.1064]
[1644313219872,2.44527222,114.45,114.39,12.62]
[1644313220073,2.44527222,114.45,114.39,18.62]
[1644313220275,2.44527222,114.45,114.39,20.95915842]
[1644313221774,2.44527222,114.45,114.4,13.1058]
[1644313221973,2.44527222,114.45,114.4,25.7258]
[1644313222172,2.44527222,114.45,114.4,31.7258]
[1644313222374,2.44527222,114.45,114.4,25.7258]
[1644313222573,2.44527222,114.45,114.38,6.42873]
[1644313223273,15.55787222,114.45,114.38,6.42873]
[1644313223772,15.55787222,114.45,114.37,50.5239]
[1644313225974,15.80787222,114.45,114.37,37.9039]
[1644313226976,15.80787222,114.45,114.38,2.08915842]
[1644313227174,13.3626,114.45,114.37,37.9039]
[1644313228076,0.25,114.45,114.38,2.08915842]
[1644313228276,37.4903,114.47,114.39,13.1093]
[1644313228477,13.3604,114.47,114.39,13.1093]
[1644313228676,13.3604,114.47,114.46,100.0]
[1644313231199,13.3604,114.47,114.38,13.1102]
[1644313233601,13.1075,114.49,114.38,15.19935842]
[1644313233806,13.1075,114.49,114.39,23.1894]
[1644313234004,13.1075,114.49,114.41,13.1069]
[1644313234405,13.1075,114.49,114.4,2.08915842]
[1644313234604,13.1075,114.49,114.39,35.8094]
[1644313234811,13.1075,114.49,114.39,36.0594]
[1644313235706,13.1075,114.49,114.4,2.08915842]
[1644313236106,13.1075,114.49,114.4,2.33915842]
[1644313236707,13.1075,114.49,114.39,35.8094]
[1644313236907,13.1075,114.49,114.39,36.0594]
[1644313237110,13.3575,114.49,114.39,36.0594]
[1644313237807,13.3575,114.49,114.41,13.1068]
[1644313238610,113.1,114.5,114.41,15.44595842]
[1644313238809,113.1,114.5,114.41,34.06595842]
[1644313239108,113.1,114.5,114.41,25.7268]
[1644313239308,113.1,114.5,114.41,48.5151]
[1644313239508,113.1,114.5,114.41,50.60425842]
[1644313239709,126.4562,114.5,114.41,50.60425842]
[1644313239913,13.3562,114.5,114.41,48.5151]
[1644313242112,13.3562,114.5,114.41,50.60425842]
[1644313242312,13.3562,114.5,114.41,48.5151]
[1644313243615,15.54987222,114.52,114.41,48.7651]
[1644313243815,13.1046,114.52,114.41,48.7651]
[1644313244616,15.54747222,114.54,114.41,54.7651]
[1644313245014,15.54747222,114.54,114.41,48.7651]
[1644313245714,13.1022,114.54,114.41,48.7651]
[1644313246115,13.1022,114.54,114.41,54.7651]
[1644313246614,13.1022,114.54,114.41,55.19215]
[1644313247016,13.1022,114.54,114.41,61.19215]
[1644313247214,13.1022,114.54,114.41,55.19215]
[1644313247418,13.1022,114.54,114.41,61.19215]
[1644313248116,15.54747222,114.54,114.41,61.19215]
[1644313248314,15.54747222,114.54,114.41,54.94215]
[1644313248516,4.90455116,114.53,114.41,48.5151]
[1644313248715,13.1033,114.53,114.41,48.5151]
[1644313248915,37.83,114.53,114.41,48.5151]
[1644313250119,37.83,114.53,114.41,54.5151]
[1644313251118,37.83,114.53,114.41,48.5151]
[1644313251418,37.83,114.53,114.41,48.7651]
[1644313251419,37.60064197,114.53,114.41,48.7651]
[1644313253122,37.60064197,114.53,114.41,54.7651]
[1644313253320,37.60064197,114.53,114.41,61.19215]
[1644313253722,24.7267,114.53,114.41,54.7651]
[1644313254123,15.54687222,114.55,114.41,54.7651]
[1644313254525,15.54687222,114.55,114.42,6.42649]
[1644313254723,15.54687222,114.55,114.44,13.1023]
[1644313254923,15.54687222,114.55,114.45,22.7295]
[1644313255323,15.54687222,114.55,114.45,22.9795]
[1644313255524,15.79687222,114.55,114.45,22.9795]
[1644313256727,15.79687222,114.55,114.45,36.0814]
[1644313257026,15.79687222,114.55,114.45,22.9795]
[1644313257227,15.79687222,114.55,114.45,22.7295]
[1644313257431,2.46383733,114.54,114.45,22.7295]
[1644313257628,13.1033,114.53,114.45,22.7295]
[1644313258429,13.1033,114.53,114.4,72.6256]
[1644313258629,24.7201,114.52,114.42,12.62]
[1644313258833,37.8245,114.52,114.43,23.9379]
[1644313259229,38.0745,114.52,114.43,23.9379]
[1644313259829,38.0745,114.52,114.43,24.1879]
[1644313260836,0.25,114.52,114.43,37.2918]
[1644313261030,0.25,114.52,114.43,49.9118]
[1644313261233,2.69527222,114.54,114.43,49.9118]
[1644313262035,4.91357485,114.53,114.43,49.9118]
[1644313262437,2.69527222,114.54,114.43,49.6618]
[1644313262635,23.65844763,114.53,114.43,49.6618]
[1644313262836,26.10371985,114.53,114.43,49.6618]
[1644313263037,4.91431985,114.52,114.43,36.5579]
[1644313263438,2.44527222,114.52,114.43,36.5579]
[1644313263637,13.1064,114.51,114.43,36.5579]
[1644313264036,2.44527222,114.52,114.43,49.6618]
[1644313264237,2.69527222,114.52,114.43,49.6618]
[1644313264636,0.25,114.52,114.43,49.6618]
[1644313264841,2.44527222,114.53,114.43,49.6618]
[1644313265038,2.69527222,114.53,114.43,49.6618]
[1644313265237,2.69527222,114.53,114.43,49.9118]
[1644313265739,15.79917222,114.53,114.43,49.9118]
[1644313267143,15.79917222,114.53,114.43,49.6618]
[1644313267350,4.92087443,114.52,114.43,49.6618]
[1644313267943,4.92087443,114.52,114.43,55.6618]
[1644313268143,2.47560221,114.52,114.43,55.6618]
[1644313268345,2.44527222,114.53,114.43,55.6618]
[1644313268548,4.92143833,114.53,114.43,55.6618]
[1644313268745,4.92143833,114.53,114.43,55.9118]
[1644313268944,113.1,114.54,114.47,13.0988]
[1644313268945,115.54527222,114.54,114.47,13.0988]
[1644313269746,113.1,114.54,114.47,13.0988]
[1644313270150,115.54527222,114.54,114.47,13.0988]
[1644313270547,2.44527222,114.54,114.47,13.0988]
[1644313271258,2.69527222,114.54,114.47,13.0988]
[1644313272059,2.44527222,114.54,114.47,13.0988]
[1644313272261,2.44527222,114.55,114.47,13.3488]
[1644313272461,4.91796358,114.55,114.47,13.3488]
[1644313273060,2.47269136,114.55,114.47,13.3488]
[1644313273262,2.44527222,114.56,114.47,13.3488]
[1644313273566,2.44527222,114.55,114.47,39.6568]
[1644313273960,2.44527222,114.56,114.47,39.6568]
[1644313274162,2.44527222,114.56,114.49,13.0966]
[1644313274460,4.91844214,114.57,114.49,13.0966]
[1644313274662,113.1,114.56,114.49,46.35175842]
[1644313275263,2.44527222,114.59,114.49,46.35175842]
[1644313275462,2.44527222,114.59,114.5,24.5553]
[1644313275662,2.44527222,114.58,114.5,24.5553]
[1644313275865,2.44527222,114.59,114.5,24.5553]
[1644313276066,4.91695392,114.59,114.5,24.5553]
[1644313276266,4.91695392,114.59,114.5,37.6513]
[1644313276863,5.16695392,114.59,114.5,37.6513]
[1644313277063,0.25,114.59,114.5,37.9013]
[1644313277264,4.55302771,114.6,114.5,37.9013]
[1644313277465,113.1,114.59,114.5,37.6513]
[1644313277665,117.65302771,114.59,114.5,37.6513]
[1644313277964,130.74932771,114.59,114.5,37.6513]
[1644313278866,115.79527222,114.59,114.5,39.74045842]
[1644313279065,113.35,114.59,114.5,37.9013]
[1644313279266,115.79527222,114.59,114.5,37.6513]
[1644313279466,113.35,114.59,114.5,39.99045842]
[1644313279665,113.35,114.59,114.5,37.9013]
[1644313279867,115.45775549,114.59,114.5,12.62]
[1644313280069,128.55375549,114.59,114.5,12.62]
[1644313280365,4.91398829,114.58,114.5,12.62]
[1644313281766,18.01168829,114.58,114.5,12.62]
[1644313281967,15.54297222,114.58,114.5,12.62]
[1644313282469,115.54527222,114.59,114.5,12.62]
[1644313282667,115.54527222,114.59,114.5,20.70915842]
[1644313282868,113.1,114.59,114.5,20.70915842]
[1644313283067,113.1,114.59,114.5,20.95915842]
[1644313283569,2.44527222,114.6,114.5,12.87]
[1644313283772,15.54107222,114.6,114.51,23.4539]
[1644313283969,18.01032781,114.6,114.51,23.4539]
[1644313284168,15.54107222,114.6,114.51,23.4539]
[1644313284370,15.79107222,114.6,114.51,23.4539]
[1644313285370,2.46869942,114.59,114.51,23.4539]
[1644313285572,13.0969,114.59,114.51,23.4539]
[1644313285770,13.0969,114.59,114.49,36.2295]
[1644313286576,15.54217222,114.59,114.49,36.2295]
[1644313287373,15.54217222,114.59,114.49,58.7831]
[1644313288776,15.79217222,114.59,114.49,74.22398862]
[1644313288979,0.25,114.59,114.49,74.22398862]
[1644313289178,49.42487222,114.61,114.49,80.22398862]
[1644313289879,162.52487222,114.61,114.49,80.22398862]
[1644313290080,13.0949,114.6,114.49,80.22398862]
[1644313290282,160.0796,114.61,114.49,94.15300722]
[1644313290585,160.0796,114.61,114.49,109.16026083]
[1644313290782,162.52487222,114.61,114.49,109.16026083]
[1644313290985,49.42487222,114.61,114.49,109.16026083]
[1644313291383,46.9796,114.61,114.49,109.16026083]
[1644313292082,49.42487222,114.61,114.49,109.16026083]
[1644313292482,46.9796,114.61,114.49,109.16026083]
[1644313292683,47.2296,114.61,114.49,109.16026083]
[1644313293083,49.67487222,114.61,114.49,109.16026083]
[1644313293282,2.69527222,114.61,114.49,115.58282083]
[1644313293683,0.25,114.61,114.49,115.58282083]
[1644313294086,2.44527222,114.62,114.49,115.58282083]
[1644313294387,2.69527222,114.62,114.49,115.58282083]
[1644313294584,2.69527222,114.62,114.49,273.27282083]
[1644313295286,2.44527222,114.62,114.49,273.27282083]
[1644313296688,2.69527222,114.62,114.49,273.27282083]
[1644313298490,2.44527222,114.62,114.49,273.27282083]
[1644313298690,2.44527222,114.64,114.49,115.78358238]
[1644313298894,126.1888,114.66,114.53,13.087]
[1644313298895,4.81974398,114.65,114.53,13.087]
[1644313299090,4.81974398,114.65,114.54,36.8635]
[1644313299293,4.81974398,114.65,114.54,39.20778862]
[1644313299490,4.81974398,114.65,114.55,2.09428862]
[1644313299689,4.81974398,114.65,114.56,12.62]
[1644313299890,115.54527222,114.66,114.57,24.2435]
[1644313300294,2.44527222,114.67,114.57,24.4935]
[1644313300493,2.44527222,114.67,114.57,47.636]
[1644313300893,2.44527222,114.67,114.58,13.0868]
[1644313301091,2.44527222,114.67,114.59,23.7038]
[1644313301296,2.44527222,114.67,114.59,23.9538]
[1644313301593,26.18497222,114.68,114.59,23.7038]
[1644313301794,2.44527222,114.67,114.59,23.7038]
[1644313301991,0.94527222,114.67,114.59,23.7038]
[1644313302194,39.0668923,114.7,114.6,2.09428862]
[1644313302392,39.0668923,114.7,114.59,29.9538]
[1644313302591,39.3168923,114.7,114.59,42.5738]
[1644313302793,39.3168923,114.7,114.6,2.09428862]
[1644313302992,39.0668923,114.7,114.6,2.09428862]
[1644313303291,39.0668923,114.7,114.6,2.34428862]
[1644313303496,25.9828923,114.7,114.61,13.0827]
[1644313303693,25.9828923,114.7,114.61,25.7027]
[1644313303894,25.9828923,114.7,114.61,28.04698862]
[1644313304297,1.2658923,114.7,114.61,28.04698862]
[1644313304495,1.2658923,114.7,114.62,23.9401]
[1644313304701,1.2658923,114.7,114.62,24.1901]
[1644313305095,1.5158923,114.7,114.62,24.1901]
[1644313305296,114.6158923,114.7,114.62,23.9401]
[1644313305497,114.6158923,114.7,114.62,37.0218]
[1644313305901,114.6158923,114.7,114.61,12.62]
[1644313306097,114.6158923,114.7,114.59,6.0]
[1644313306098,116.72364779,114.7,114.58,23.362]
[1644313306299,24.5771,114.69,114.59,12.62]
[1644313306499,32.6711,114.69,114.59,12.62]
[1644313307099,5.6268923,114.7,114.59,12.62]
[1644313307299,1.2658923,114.7,114.6,2.09428862]
[1644313307499,1.2658923,114.7,114.61,12.62]
[1644313307699,1.2658923,114.7,114.64,13.0791]
[1644313308101,1.2658923,114.7,114.64,13.3291]
[1644313308700,1.2658923,114.7,114.65,14.71428862]
[1644313308903,1.2658923,114.7,114.66,13.0763]
[1644313309300,37.51231252,114.76,114.66,13.0763]
[1644313309301,13.51511252,114.76,114.66,13.3263]
[1644313309502,0.43781252,114.76,114.67,36.6812]
[1644313309700,113.1,114.75,114.67,42.9312]
[1644313310003,113.1,114.75,114.68,2.08936006]
[1644313310201,113.1,114.75,114.69,12.62]
[1644313310601,0.43781252,114.76,114.69,18.87]
[1644313311510,0.43781252,114.76,114.7,37.7935]
[1644313311703,0.43781252,114.76,114.7,50.6635]
[1644313312322,0.43781252,114.76,114.7,50.4135]
[1644313312521,0.43781252,114.76,114.7,50.6635]
[1644313313023,0.43781252,114.76,114.7,37.5928]
[1644313313229,0.43781252,114.76,114.7,12.62]
[1644313317430,0.43781252,114.76,114.66,23.1068]
[1644313317630,13.51571252,114.76,114.67,6.41248]
[1644313319737,15.62346801,114.76,114.67,6.41248]
[1644313319933,0.3100461,114.74,114.67,6.41248]
[1644313320133,13.0852,114.72,114.58,12.62]
[1644313320337,0.31910427,114.71,114.58,6.41751]
[1644313320538,29.11885976,114.71,114.58,6.41751]
[1644313320737,43.6315,114.69,114.58,6.41751]
[1644313320940,56.2515,114.69,114.58,6.41751]
[1644313321137,19.55825549,114.68,114.58,6.41751]
[1644313321339,28.27925549,114.68,114.58,6.41751]
[1644313321537,26.1715,114.68,114.58,6.41751]
[1644313321737,0.30021058,114.67,114.58,6.41751]
[1644313322137,13.088,114.68,114.58,6.41751]
[1644313323140,13.088,114.68,114.58,6.66751]
[1644313323541,13.0859,114.7,114.59,2.08936006]
[1644313323742,13.0859,114.7,114.59,23.4751]
[1644313324241,13.0859,114.7,114.59,23.2251]
[1644313325044,13.0859,114.7,114.58,19.03751]
[1644313325245,13.3359,114.7,114.58,19.03751]
[1644313325443,13.3359,114.7,114.58,6.41751]
[1644313325846,13.3359,114.7,114.58,19.50431]
[1644313326344,15.44365549,114.7,114.58,13.0868]
[1644313327145,15.7572104,114.7,114.56,25.7092]
[1644313327355,4.361,114.69,114.56,25.7092]
[1644313327546,2.6713104,114.7,114.56,25.7092]
[1644313327847,13.088,114.68,114.56,25.7092]
[1644313328147,0.25,114.7,114.56,45.6382186]
[1644313328346,60.6065,114.71,114.57,47.9608]
[1644313328547,2.10775549,114.69,114.57,61.0487]
[1644313328747,0.25,114.69,114.57,61.0487]
[1644313329046,13.0858,114.7,114.58,12.62]
[1644313329249,24.5162,114.72,114.58,12.62]
[1644313329447,24.5162,114.72,114.59,23.2723]
[1644313329648,24.5162,114.72,114.61,13.0836]
[1644313329851,2.10775549,114.71,114.61,13.0836]
[1644313330351,10.86175549,114.71,114.59,35.8923]
[1644313330549,23.48175549,114.71,114.57,57.1537186]
[1644313330750,2.10775549,114.7,114.58,24.4897]
[1644313330950,15.19315549,114.7,114.59,25.706]
[1644313331149,15.19315549,114.7,114.59,19.086]
[1644313331350,15.19315549,114.7,114.59,19.336]
[1644313332852,13.0854,114.7,114.59,34.04536006]
[1644313333455,13.0854,114.7,114.59,21.42536006]
[1644313333657,13.0854,114.7,114.59,34.04536006]
[1644313333857,12.5854,114.7,114.59,34.04536006]
[1644313334058,37.5994,114.72,114.59,34.04536006]
[1644313334256,37.5994,114.72,114.6,22.9572]
[1644313334458,37.5994,114.72,114.63,13.0812]
[1644313334656,37.5994,114.72,114.63,19.0812]
[1644313335459,13.0832,114.72,114.63,19.0812]
[1644313335659,13.0832,114.72,114.63,19.3312]
[1644313335858,13.0832,114.72,114.63,19.0812]
[1644313338060,13.3332,114.72,114.63,19.0812]
[1644313338585,113.1,114.73,114.63,19.0812]
[1644313338783,113.1,114.73,114.63,21.42056006]
[1644313338983,60.2438,114.74,114.64,12.62]
[1644313339182,60.2438,114.74,114.64,49.9157]
[1644313339383,1.23497361,114.72,114.64,50.1657]
[1644313339884,1.48497361,114.72,114.64,49.9157]
[1644313340085,1.23497361,114.72,114.64,55.9157]
[1644313340292,1.23497361,114.73,114.64,49.9157]
[1644313340785,1.23497361,114.73,114.64,52.00506006]
[1644313340986,1.23497361,114.74,114.64,52.00506006]
[1644313341186,1.23497361,114.74,114.64,62.61406006]
[1644313341386,1.23497361,114.74,114.64,234.23307866]
[1644313342185,1.23497361,114.75,114.64,234.23307866]
[1644313343885,1.67278613,114.76,114.64,248.7149156]
[1644313344286,1.67278613,114.76,114.64,60.5247]
[1644313344287,1.23497361,114.75,114.64,60.5247]
[1644313344690,1.23497361,114.75,114.65,2.08936006]
[1644313344889,0.43781252,114.76,114.66,12.62]
[1644313344890,1.67278613,114.76,114.66,12.62]
[1644313345090,0.43781252,114.76,114.68,13.0717]
[1644313345289,0.43781252,114.76,114.69,12.62]
[1644313345494,1.17278613,114.77,114.68,25.6917]
[1644313345691,4.358,114.8,114.67,22.6048]
[1644313345992,113.1,114.78,114.67,28.6048]
[1644313346191,2.10775549,114.79,114.67,28.6048]
[1644313346393,2.10775549,114.79,114.67,22.6048]
[1644313346992,36.2475,114.8,114.67,22.6048]
[1644313347192,38.35525549,114.8,114.67,22.8548]
[1644313347392,38.35525549,114.8,114.67,22.6048]
[1644313347593,13.0768,114.78,114.65,12.62]
[1644313347793,36.3232,114.78,114.65,12.62]
[1644313347996,14.72775549,114.77,114.63,12.62]
[1644313348193,4.359,114.76,114.63,18.62]
[1644313348393,2.10775549,114.76,114.63,18.62]
[1644313348594,60.5826,114.77,114.63,31.6997]
[1644313348795,43.6036,114.77,114.63,31.6997]
[1644313348996,50.3763,114.78,114.63,33.78906006]
[1644313349196,46.0173,114.78,114.63,49.2445073]
[1644313349600,46.0173,114.78,114.63,43.2445073]
[1644313349895,13.0787,114.76,114.63,27.78906006]
[1644313350097,25.1967,114.76,114.63,25.6997]
[1644313350298,25.4467,114.76,114.63,12.62]
[1644313350796,25.3727,114.76,114.63,12.62]
[1644313351096,25.3727,114.76,114.63,18.87]
[1644313351796,25.3727,114.76,114.63,34.03896006]
[1644313352197,25.3727,114.76,114.63,31.9496]
[1644313352696,25.3727,114.76,114.63,34.03896006]
[1644313353099,40.10045549,114.76,114.63,31.9496]
[1644313353296,40.10045549,114.76,114.63,18.62]
[1644313353697,37.9927,114.76,114.63,18.87]
[1644313353896,37.9927,114.76,114.63,18.62]
[1644313354497,40.41078504,114.76,114.63,6.0]
[1644313354700,40.41078504,114.76,114.61,54.0612]
[1644313354900,4.359,114.75,114.61,48.0612]
[1644313355099,13.085,114.71,114.61,48.0612]
[1644313355300,20.22,114.71,114.59,12.62]
[1644313355602,20.22,114.71,114.59,18.62]
[1644313355802,20.22,114.71,114.58,88.8753]
[1644313356005,20.22,114.71,114.56,61.0083186]
[1644313356006,34.94775549,114.71,114.56,61.0083186]
[1644313356203,34.94775549,114.71,114.56,47.0793]
[1644313356502,34.94775549,114.71,114.54,39.6298]
[1644313356703,50.6019,114.7,114.54,35.2688]
[1644313356903,13.0907,114.66,114.55,13.0892]
[1644313357103,22.5877,114.66,114.55,37.8058]
[1644313357502,22.5877,114.66,114.56,2.09448378]
[1644313357703,22.868,114.68,114.56,2.09448378]
[1644313357904,23.3719,114.7,114.57,12.62]
[1644313358105,23.3719,114.7,114.57,18.62]
[1644313358106,36.4575,114.7,114.57,18.62]
[1644313358307,36.4575,114.7,114.58,2.09448378]
[1644313358505,12.62,114.72,114.58,62.43618378]
[1644313358705,12.62,114.72,114.58,68.68618378]
[1644313358904,12.62,114.72,114.59,2.09448378]
[1644313359108,61.1867,114.74,114.6,12.62]
[1644313359305,13.0811,114.74,114.61,24.8864]
[1644313359506,13.0811,114.74,114.61,26.98088378]
[1644313359706,13.0811,114.74,114.62,14.71448378]
[1644313359905,13.0811,114.74,114.62,38.00818378]
[1644313360106,13.0811,114.74,114.63,2.08933397]
[1644313360308,13.0811,114.74,114.63,28.03883397]
[1644313360507,13.0811,114.74,114.63,57.12903397]
[1644313360708,59.6205,114.76,114.64,2.08933397]
[1644313360907,59.6205,114.76,114.65,12.62]
[1644313361210,59.6205,114.76,114.65,18.87]
[1644313361607,59.6205,114.76,114.65,12.87]
[1644313362208,59.6205,114.76,114.65,35.9737]
[1644313363713,13.0789,114.76,114.65,55.0514]
[1644313364116,13.3289,114.76,114.65,54.8014]
[1644313364315,2.10775549,114.75,114.65,18.62]
[1644313364517,13.082,114.73,114.62,23.2937]
[1644313364718,13.082,114.73,114.62,41.9137]
[1644313364936,13.082,114.73,114.62,35.9137]
[1644313365136,13.082,114.73,114.62,41.9137]
[1644313365634,13.082,114.73,114.62,55.2449]
[1644313366437,13.082,114.73,114.62,54.9949]
[1644313366633,15.18975549,114.73,114.62,48.9949]
[1644313366833,2.10775549,114.73,114.62,48.9949]
[1644313367034,13.0798,114.75,114.63,23.0017]
[1644313367233,2.10775549,114.77,114.65,13.0776]
[1644313367434,2.10775549,114.77,114.66,36.3747]
[1644313367635,2.10775549,114.77,114.64,12.62]
[1644313367934,2.10775549,114.77,114.65,23.7547]
[1644313367935,41.63155549,114.77,114.65,23.7547]
[1644313368133,4.358,114.76,114.65,23.7547]
[1644313368335,13.0819,114.73,114.63,12.62]
[1644313368541,13.0819,114.73,114.62,23.2937]
[1644313368742,13.0819,114.73,114.63,12.62]
[1644313369136,13.3319,114.73,114.63,12.62]
[1644313369736,13.3319,114.73,114.63,12.87]
[1644313370337,13.3319,114.73,114.63,35.3843]
[1644313370837,13.0819,114.73,114.63,35.3843]
[1644313371243,13.0819,114.73,114.63,54.4648]
[1644313372238,13.3319,114.73,114.63,54.4648]
[1644313372439,2.10775549,114.72,114.63,35.3843]
[1644313372639,15.19065549,114.72,114.63,35.3843]
[1644313373138,13.0829,114.72,114.63,35.3843]
[1644313373539,47.28640138,114.78,114.63,35.3843]
[1644313373742,43.5994,114.78,114.63,63.07965257]
[1644313373940,43.5994,114.78,114.63,69.07965257]
[1644313374339,43.5994,114.78,114.63,83.41753314]
[1644313374539,43.5994,114.78,114.63,83.16753314]
[1644313374739,13.0785,114.76,114.63,48.2148]
[1644313374938,13.0785,114.76,114.63,35.5948]
[1644313374939,25.5615,114.76,114.63,35.5948]
[1644313375139,2.10775549,114.75,114.63,35.5948]
[1644313375438,2.10775549,114.75,114.63,48.2148]
[1644313375840,13.0804,114.74,114.63,12.62]
[1644313376040,0.30584441,114.7,114.59,12.62]
[1644313376243,0.31840523,114.69,114.56,27.376]
[1644313376442,12.62,114.68,114.56,4.359]
[1644313376643,0.31398345,114.65,114.53,9.11395]
[1644313376841,13.0946,114.62,114.53,9.11395]
[1644313377041,36.6006,114.62,114.54,6.41975]
[1644313377242,36.6006,114.62,114.53,9.11395]
[1644313377442,36.6006,114.62,114.52,13.2131]
[1644313377843,36.92187971,114.62,114.52,13.2131]
[1644313378044,36.92187971,114.62,114.5,526.3626502]
[1644313378244,36.92187971,114.62,114.53,6.42031]
[1644313378644,25.7146,114.62,114.54,2.07440968]
[1644313378851,25.7146,114.62,114.54,8.49415968]
[1644313379044,25.7146,114.62,114.54,6.41975]
[1644313379645,160.11860142,114.61,114.54,6.41975]
[1644313379844,13.1009,114.59,114.54,6.41975]
[1644313380046,12.62,114.58,114.54,6.41975]
[1644313380247,23.73675549,114.58,114.44,121.9831]
[1644313380447,23.73675549,114.58,114.45,6.4248]
[1644313380846,13.1013,114.56,114.46,20.74988742]
[1644313381047,25.7213,114.56,114.47,6.42368]
[1644313381248,25.7213,114.56,114.47,6.67368]
[1644313381851,25.7213,114.56,114.45,2.06941067]
[1644313382056,25.7213,114.56,114.46,6.25]
[1644313382252,25.7213,114.56,114.46,20.99869783]
[1644313382450,25.7213,114.56,114.46,26.99869783]
[1644313382653,25.7213,114.56,114.46,6.25]
[1644313382850,12.62,114.56,114.46,19.3502]
[1644313383050,12.62,114.56,114.46,21.84385067]
[1644313383250,12.62,114.56,114.46,27.84385067]
[1644313384253,12.87,114.56,114.47,20.74441756]
[1644313384451,12.87,114.56,114.47,33.84371756]
[1644313384650,12.87,114.56,114.47,13.0993]
[1644313385251,12.87,114.56,114.47,13.3493]
[1644313385451,12.62,114.56,114.47,13.0993]
[1644313386455,12.62,114.56,114.47,15.17880532]
[1644313386659,12.62,114.56,114.47,15.42880532]
[1644313386858,0.25,114.56,114.47,13.3493]
[1644313387057,0.25,114.56,114.47,19.3493]
[1644313387256,25.7192,114.59,114.47,13.3493]
[1644313387457,25.7192,114.59,114.48,2.07950532]
[1644313387458,12.62,114.59,114.48,2.07950532]
[1644313387658,12.62,114.59,114.49,13.0976]
[1644313388659,12.62,114.59,114.49,15.42710532]
[1644313388858,206.1657,114.63,114.49,21.42710532]
[1644313388859,13.0954,114.63,114.49,21.42710532]
[1644313389157,6.41574,114.62,114.49,34.04710532]
[1644313389959,12.62,114.64,114.49,34.04710532]
[1644313390161,19.03574,114.64,114.49,57.18010532]
[1644313390558,19.03574,114.64,114.5,20.68514825]
[1644313390759,19.03574,114.64,114.53,13.0929]
[1644313391160,34.23799549,114.64,114.51,23.1167]
[1644313391361,45.81599549,114.64,114.51,23.3667]
[1644313391759,45.81599549,114.64,114.51,23.1167]
[1644313392261,46.06599549,114.64,114.51,23.1167]
[1644313392664,34.48799549,114.64,114.51,23.1167]
[1644313392864,34.48799549,114.64,114.51,38.29100532]
[1644313393064,28.07225549,114.64,114.51,38.29100532]
[1644313393265,25.9645,114.64,114.51,38.54100532]
[1644313393865,32.38024,114.64,114.51,38.54100532]
[1644313394066,32.38024,114.64,114.51,44.54100532]
[1644313394365,32.13024,114.64,114.51,44.54100532]